[Event "Titled Tuesday Blitz February 07 Late 2023"]
[White "Yedidia, Daniel"]
[Black "Prieto Aranguren, Alain"]
[WhiteFideId "30905907"]
[BlackFideId "2268906"]
[WhiteElo "2041"]
[BlackElo "2258"]
[Result "1-0"]
[Round "10"]
[TimeControl "180+2"]
[Date "2023.02.07"]
[WhiteClock "0:00:04"]
[BlackClock "0:00:10"]

1. d4 {[%clk 0:02:57]}  g6 {[%clk 0:02:57]} 2. c4 {[%clk 0:02:56]}  Bg7 {[%clk 0:02:57]} 3. Nc3 {[%clk 0:02:56]}  d6 {[%clk 0:02:57]} 4. e4 {[%clk 0:02:57]}  Nc6 {[%clk 0:02:56]} 5. Nf3 {[%clk 0:02:56]}  Bg4 {[%clk 0:02:55]} 6. d5 {[%clk 0:02:55]}  Nd4 {[%clk 0:02:51]} 7. Be2 {[%clk 0:02:51]}  Nxe2 {[%clk 0:02:50]} 8. Qxe2 {[%clk 0:02:49]}  e5 {[%clk 0:02:50]} 9. h3 {[%clk 0:02:47]}  Bd7 {[%clk 0:02:49]} 10. Bg5 {[%clk 0:02:46]}  Bf6 {[%clk 0:02:45]} 11. Be3 {[%clk 0:02:45]}  Ne7 {[%clk 0:02:41]} 12. g4 {[%clk 0:02:44]}  h6 {[%clk 0:02:39]} 13. Qd2 {[%clk 0:02:40]}  g5 {[%clk 0:02:38]} 14. O-O-O {[%clk 0:02:37]}  Ng6 {[%clk 0:02:38]} 15. Ne2 {[%clk 0:02:37]}  a6 {[%clk 0:02:37]} 16. Ng3 {[%clk 0:02:37]}  b5 {[%clk 0:02:36]} 17. c5 {[%clk 0:02:36]}  Nf4 {[%clk 0:02:32]} 18. c6 {[%clk 0:02:37]}  Bc8 {[%clk 0:02:31]} 19. Bxf4 {[%clk 0:02:36]}  exf4 {[%clk 0:02:30]} 20. Nf5 {[%clk 0:02:36]}  Bxf5 {[%clk 0:02:27]} 21. exf5 {[%clk 0:02:37]}  Qb8 {[%clk 0:02:20]} 22. Rhe1+ {[%clk 0:02:33]}  Kf8 {[%clk 0:02:19]} 23. Qd3 {[%clk 0:02:27]}  Qb6 {[%clk 0:02:17]} 24. Re2 {[%clk 0:02:26]}  Kg7 {[%clk 0:02:14]} 25. Nd2 {[%clk 0:02:24]}  Rhe8 {[%clk 0:02:08]} 26. Rde1 {[%clk 0:02:22]}  Re5 {[%clk 0:02:06]} 27. Rxe5 {[%clk 0:02:20]}  Bxe5 {[%clk 0:02:06]} 28. Ne4 {[%clk 0:02:08]}  Re8 {[%clk 0:02:00]} 29. Re2 {[%clk 0:02:07]}  Qd4 {[%clk 0:01:51]} 30. Qxd4 {[%clk 0:01:56]}  Bxd4 {[%clk 0:01:51]} 31. f3 {[%clk 0:01:55]}  Be3+ {[%clk 0:01:47]} 32. Kc2 {[%clk 0:01:55]}  Re5 {[%clk 0:01:44]} 33. Nc3 {[%clk 0:01:53]}  h5 {[%clk 0:01:42]} 34. Kd3 {[%clk 0:01:46]}  h4 {[%clk 0:01:41]} 35. a3 {[%clk 0:01:39]}  f6 {[%clk 0:01:41]} 36. Re1 {[%clk 0:01:36]}  a5 {[%clk 0:01:38]} 37. b4 {[%clk 0:01:17]}  axb4 {[%clk 0:01:37]} 38. axb4 {[%clk 0:01:18]}  Kf7 {[%clk 0:01:36]} 39. Rd1 {[%clk 0:01:05]}  Ke7 {[%clk 0:01:33]} 40. Kc2 {[%clk 0:01:02]}  Bb6 {[%clk 0:01:30]} 41. Nxb5 {[%clk 0:00:56]}  Re3 {[%clk 0:01:26]} 42. Rd3 {[%clk 0:00:56]}  Re2+ {[%clk 0:01:27]} 43. Rd2 {[%clk 0:00:56]}  Re1 {[%clk 0:01:26]} 44. Nc3 {[%clk 0:00:50]}  Rh1 {[%clk 0:01:24]} 45. Re2+ {[%clk 0:00:47]}  Kf7 {[%clk 0:01:23]} 46. Na4 {[%clk 0:00:45]}  Be3 {[%clk 0:01:20]} 47. b5 {[%clk 0:00:43]}  Ra1 {[%clk 0:01:03]} 48. Kb3 {[%clk 0:00:36]}  Ke7 {[%clk 0:00:59]} 49. b6 {[%clk 0:00:28]}  cxb6 {[%clk 0:00:55]} 50. Rc2 {[%clk 0:00:16]}  Bc5 {[%clk 0:00:47]} 51. Ra2 {[%clk 0:00:12]}  Rb1+ {[%clk 0:00:43]} 52. Kc2 {[%clk 0:00:10]}  Rf1 {[%clk 0:00:39]} 53. Nxc5 {[%clk 0:00:10]}  Rf2+ {[%clk 0:00:37]} 54. Kb1 {[%clk 0:00:10]}  Rf1+ {[%clk 0:00:36]} 55. Kb2 {[%clk 0:00:08]}  dxc5 {[%clk 0:00:33]} 56. c7 {[%clk 0:00:04]}  Kd7 {[%clk 0:00:31]} 57. Ra7 {[%clk 0:00:03]}  Rd1 {[%clk 0:00:29]} 58. Rb7 {[%clk 0:00:03]}  Rxd5 {[%clk 0:00:29]} 59. Rxb6 {[%clk 0:00:02]}  Rd3 {[%clk 0:00:28]} 60. Rxf6 {[%clk 0:00:02]}  Kxc7 {[%clk 0:00:26]} 61. Rg6 {[%clk 0:00:03]}  Rxf3 {[%clk 0:00:25]} 62. Rxg5 {[%clk 0:00:03]}  Rxh3 {[%clk 0:00:26]} 63. Rg7+ {[%clk 0:00:02]}  Kd6 {[%clk 0:00:25]} 64. f6 {[%clk 0:00:03]}  Rg3 {[%clk 0:00:21]} 65. g5 {[%clk 0:00:02]}  h3 {[%clk 0:00:21]} 66. g6 {[%clk 0:00:02]}  h2 {[%clk 0:00:20]} 67. f7 {[%clk 0:00:03]}  Rg2+ {[%clk 0:00:15]} 68. Kb3 {[%clk 0:00:03]}  Ke7 {[%clk 0:00:11]} 69. Rg8 {[%clk 0:00:03]}  Rg3+ {[%clk 0:00:10]} 70. Kc4 {[%clk 0:00:03]}  h1=Q {[%clk 0:00:09]} 71. f8=Q+ {[%clk 0:00:03]}  Ke6 {[%clk 0:00:10]} 72. Qf7+ {[%clk 0:00:04]}  Ke5 {[%clk 0:00:10]} 73. Re8+ {[%clk 0:00:04]}  Kd6 {[%clk 0:00:10]} 74. Re6# {[%clk 0:00:04]} 1-0


[Site "https://www.chess.com"]

[Event "Titled Tuesday Blitz February 07 Late 2023"]
[White "Miszler, Levente"]
[Black "Seletsky, Grigory"]
[WhiteFideId "763276"]
[BlackFideId "14112191"]
[WhiteElo "2271"]
[BlackElo "2259"]
[Result "1/2-1/2"]
[Round "10"]
[TimeControl "180+2"]
[Date "2023.02.07"]
[WhiteClock "0:00:05"]
[BlackClock "0:00:01"]

1. Nf3 {[%clk 0:03:00]}  d5 {[%clk 0:02:55]} 2. c4 {[%clk 0:03:01]}  c6 {[%clk 0:02:55]} 3. g3 {[%clk 0:03:00]}  Nf6 {[%clk 0:02:54]} 4. Bg2 {[%clk 0:03:01]}  Bf5 {[%clk 0:02:55]} 5. O-O {[%clk 0:03:01]}  e6 {[%clk 0:02:55]} 6. b3 {[%clk 0:03:01]}  h6 {[%clk 0:02:55]} 7. Bb2 {[%clk 0:03:02]}  Be7 {[%clk 0:02:55]} 8. d4 {[%clk 0:03:00]}  O-O {[%clk 0:02:55]} 9. Nbd2 {[%clk 0:03:00]}  Nbd7 {[%clk 0:02:45]} 10. Re1 {[%clk 0:03:00]}  Ne4 {[%clk 0:02:45]} 11. Nxe4 {[%clk 0:02:58]}  Bxe4 {[%clk 0:02:45]} 12. Qd2 {[%clk 0:02:56]}  b5 {[%clk 0:02:17]} 13. Rac1 {[%clk 0:02:52]}  bxc4 {[%clk 0:02:15]} 14. bxc4 {[%clk 0:02:53]}  Bxf3 {[%clk 0:01:52]} 15. Bxf3 {[%clk 0:02:53]}  Nb6 {[%clk 0:01:53]} 16. cxd5 {[%clk 0:02:49]}  cxd5 {[%clk 0:01:53]} 17. e4 {[%clk 0:02:32]}  dxe4 {[%clk 0:01:49]} 18. Bxe4 {[%clk 0:02:30]}  Nd5 {[%clk 0:01:49]} 19. Bxd5 {[%clk 0:02:25]}  Qxd5 {[%clk 0:01:48]} 20. Re5 {[%clk 0:02:21]}  Qd6 {[%clk 0:01:45]} 21. Rce1 {[%clk 0:02:06]}  Bf6 {[%clk 0:01:42]} 22. R5e4 {[%clk 0:02:00]}  Rfd8 {[%clk 0:01:43]} 23. Qa5 {[%clk 0:01:53]}  Rd7 {[%clk 0:01:38]} 24. Ba3 {[%clk 0:01:43]}  Qd5 {[%clk 0:01:37]} 25. Bc5 {[%clk 0:01:40]}  Rc8 {[%clk 0:01:30]} 26. Qa4 {[%clk 0:01:38]}  Qc6 {[%clk 0:01:25]} 27. Qb3 {[%clk 0:01:33]}  Rb7 {[%clk 0:01:14]} 28. Qa3 {[%clk 0:01:29]}  Rd8 {[%clk 0:01:12]} 29. h4 {[%clk 0:01:21]}  h5 {[%clk 0:01:10]} 30. Qf3 {[%clk 0:01:19]}  Rd5 {[%clk 0:01:07]} 31. R4e3 {[%clk 0:01:10]}  Rbd7 {[%clk 0:01:00]} 32. Rb3 {[%clk 0:00:58]}  Rb7 {[%clk 0:00:47]} 33. Reb1 {[%clk 0:00:56]}  Rxb3 {[%clk 0:00:36]} 34. Rxb3 {[%clk 0:00:57]}  Qd7 {[%clk 0:00:31]} 35. Rb8+ {[%clk 0:00:52]}  Kh7 {[%clk 0:00:30]} 36. Ra8 {[%clk 0:00:42]}  Rf5 {[%clk 0:00:24]} 37. Qe4 {[%clk 0:00:37]}  Qa4 {[%clk 0:00:12]} 38. Rxa7 {[%clk 0:00:30]}  Qd1+ {[%clk 0:00:12]} 39. Kg2 {[%clk 0:00:30]}  Kg6 {[%clk 0:00:12]} 40. Ra3 {[%clk 0:00:18]}  Qd2 {[%clk 0:00:12]} 41. Rf3 {[%clk 0:00:17]}  Qxa2 {[%clk 0:00:12]} 42. Rxf5 {[%clk 0:00:15]}  exf5 {[%clk 0:00:12]} 43. Qf4 {[%clk 0:00:15]}  Qd5+ {[%clk 0:00:09]} 44. Kg1 {[%clk 0:00:13]}  Qe4 {[%clk 0:00:09]} 45. Qd2 {[%clk 0:00:12]}  f4 {[%clk 0:00:08]} 46. Qxf4 {[%clk 0:00:08]}  Qxf4 {[%clk 0:00:07]} 47. gxf4 {[%clk 0:00:09]}  Kf5 {[%clk 0:00:08]} 48. Kg2 {[%clk 0:00:10]}  Bxh4 {[%clk 0:00:08]} 49. Kf3 {[%clk 0:00:09]}  Bd8 {[%clk 0:00:07]} 50. Bf8 {[%clk 0:00:09]}  Bc7 {[%clk 0:00:07]} 51. Bxg7 {[%clk 0:00:09]}  Bxf4 {[%clk 0:00:07]} 52. Bf8 {[%clk 0:00:06]}  h4 {[%clk 0:00:06]} 53. Be7 {[%clk 0:00:06]}  h3 {[%clk 0:00:05]} 54. Bh4 {[%clk 0:00:06]}  Bd6 {[%clk 0:00:02]} 55. Bg3 {[%clk 0:00:05]}  h2 {[%clk 0:00:02]} 56. Kg2 {[%clk 0:00:04]}  Bxg3 {[%clk 0:00:02]} 57. fxg3 {[%clk 0:00:04]}  Ke4 {[%clk 0:00:02]} 58. Kxh2 {[%clk 0:00:05]}  Kxd4 {[%clk 0:00:02]} 59. Kh3 {[%clk 0:00:04]}  Ke4 {[%clk 0:00:02]} 60. Kg4 {[%clk 0:00:04]}  f5+ {[%clk 0:00:01]} 61. Kg5 {[%clk 0:00:04]}  Kf3 {[%clk 0:00:01]} 62. Kxf5 {[%clk 0:00:05]}  Kxg3 {[%clk 0:00:01]} 1/2-1/2


[Site "https://www.chess.com"]

[Event "Titled Tuesday Blitz February 07 Late 2023"]
[White "Dragomirescu, Angela"]
[Black "Hoffmann, Asa"]
[WhiteFideId "1209914"]
[BlackFideId "2001470"]
[WhiteElo "2130"]
[BlackElo "2185"]
[Result "1-0"]
[Round "10"]
[TimeControl "180+2"]
[Date "2023.02.07"]
[WhiteClock "0:00:13"]
[BlackClock "0:00:01"]

1. e4 {[%clk 0:03:00]}  d6 {[%clk 0:02:57]} 2. d4 {[%clk 0:03:00]}  Nf6 {[%clk 0:02:57]} 3. Nc3 {[%clk 0:03:01]}  c6 {[%clk 0:02:57]} 4. Nf3 {[%clk 0:02:52]}  Bg4 {[%clk 0:02:56]} 5. a4 {[%clk 0:02:50]}  e6 {[%clk 0:02:55]} 6. Bd3 {[%clk 0:02:42]}  d5 {[%clk 0:02:55]} 7. Qe2 {[%clk 0:02:42]}  Bb4 {[%clk 0:02:53]} 8. e5 {[%clk 0:02:40]}  Nfd7 {[%clk 0:02:52]} 9. O-O {[%clk 0:02:31]}  a6 {[%clk 0:02:51]} 10. Nd1 {[%clk 0:02:25]}  Be7 {[%clk 0:02:45]} 11. Ne3 {[%clk 0:02:25]}  Bh5 {[%clk 0:02:44]} 12. b3 {[%clk 0:02:25]}  c5 {[%clk 0:02:43]} 13. Bb2 {[%clk 0:02:22]}  cxd4 {[%clk 0:02:40]} 14. Bxd4 {[%clk 0:02:23]}  Nc6 {[%clk 0:02:40]} 15. g4 {[%clk 0:02:18]}  Nxd4 {[%clk 0:02:36]} 16. Nxd4 {[%clk 0:02:18]}  Bg6 {[%clk 0:02:36]} 17. Bxg6 {[%clk 0:02:14]}  hxg6 {[%clk 0:02:35]} 18. f4 {[%clk 0:02:15]}  Nc5 {[%clk 0:02:18]} 19. f5 {[%clk 0:02:13]}  gxf5 {[%clk 0:02:17]} 20. gxf5 {[%clk 0:02:14]}  Qd7 {[%clk 0:02:06]} 21. b4 {[%clk 0:01:54]}  Ne4 {[%clk 0:02:04]} 22. fxe6 {[%clk 0:01:54]}  fxe6 {[%clk 0:02:03]} 23. Qg4 {[%clk 0:01:55]}  Rh6 {[%clk 0:01:35]} 24. b5 {[%clk 0:01:37]}  Bg5 {[%clk 0:01:13]} 25. Ng2 {[%clk 0:01:29]}  O-O-O {[%clk 0:00:59]} 26. c4 {[%clk 0:00:54]}  Rdh8 {[%clk 0:00:56]} 27. cxd5 {[%clk 0:00:51]}  Qxd5 {[%clk 0:00:55]} 28. Nf3 {[%clk 0:00:50]}  Be7 {[%clk 0:00:40]} 29. Nf4 {[%clk 0:00:25]}  Bc5+ {[%clk 0:00:37]} 30. Kg2 {[%clk 0:00:23]}  Qd7 {[%clk 0:00:29]} 31. Rac1 {[%clk 0:00:19]}  Kb8 {[%clk 0:00:28]} 32. Rfe1 {[%clk 0:00:19]}  Nf2 {[%clk 0:00:24]} 33. Qg3 {[%clk 0:00:19]}  Ba7 {[%clk 0:00:20]} 34. Rf1 {[%clk 0:00:17]}  Ne4 {[%clk 0:00:18]} 35. Qe1 {[%clk 0:00:17]}  Nc5 {[%clk 0:00:14]} 36. Rd1 {[%clk 0:00:18]}  Qf7 {[%clk 0:00:13]} 37. bxa6 {[%clk 0:00:18]}  bxa6 {[%clk 0:00:13]} 38. Qb4+ {[%clk 0:00:17]}  Ka8 {[%clk 0:00:12]} 39. Nd3 {[%clk 0:00:17]}  Qg6+ {[%clk 0:00:11]} 40. Kh1 {[%clk 0:00:16]}  Qe4 {[%clk 0:00:10]} 41. Qxe4+ {[%clk 0:00:12]}  Nxe4 {[%clk 0:00:10]} 42. Rfe1 {[%clk 0:00:13]}  Nc3 {[%clk 0:00:07]} 43. Rc1 {[%clk 0:00:13]}  Nd5 {[%clk 0:00:07]} 44. Rc6 {[%clk 0:00:13]}  Rh3 {[%clk 0:00:06]} 45. Rf1 {[%clk 0:00:12]}  g5 {[%clk 0:00:06]} 46. Nde1 {[%clk 0:00:12]}  g4 {[%clk 0:00:06]} 47. Kg2 {[%clk 0:00:12]}  gxf3+ {[%clk 0:00:05]} 48. Rxf3 {[%clk 0:00:13]}  Rxf3 {[%clk 0:00:05]} 49. Nxf3 {[%clk 0:00:14]}  Rg8+ {[%clk 0:00:04]} 50. Kf1 {[%clk 0:00:14]}  Rf8 {[%clk 0:00:04]} 51. Ke2 {[%clk 0:00:14]}  Nf4+ {[%clk 0:00:04]} 52. Ke1 {[%clk 0:00:13]}  Ng6 {[%clk 0:00:03]} 53. Rc3 {[%clk 0:00:12]}  Bb6 {[%clk 0:00:02]} 54. Ke2 {[%clk 0:00:13]}  Kb7 {[%clk 0:00:02]} 55. Rb3 {[%clk 0:00:13]}  Kc7 {[%clk 0:00:01]} 56. h4 {[%clk 0:00:13]} 1-0


[Site "https://www.chess.com"]

[Event "Titled Tuesday Blitz February 07 Late 2023"]
[White "Vega Gutierrez, Sabrina"]
[Black "Rizzo, Tobias"]
[WhiteFideId "2219026"]
[BlackFideId "30942691"]
[WhiteElo "2377"]
[BlackElo "1867"]
[Result "1-0"]
[Round "10"]
[TimeControl "180+2"]
[Date "2023.02.07"]
[WhiteClock "0:00:02"]
[BlackClock "0:00:02"]

1. e4 {[%clk 0:03:00]}  c5 {[%clk 0:02:59]} 2. Nf3 {[%clk 0:03:01]}  e6 {[%clk 0:02:59]} 3. d4 {[%clk 0:03:01]}  cxd4 {[%clk 0:03:00]} 4. Nxd4 {[%clk 0:03:02]}  Nf6 {[%clk 0:03:00]} 5. Nc3 {[%clk 0:03:02]}  Nc6 {[%clk 0:03:00]} 6. a3 {[%clk 0:02:58]}  d5 {[%clk 0:02:59]} 7. Bb5 {[%clk 0:02:45]}  Bd7 {[%clk 0:02:41]} 8. Bxc6 {[%clk 0:02:40]}  bxc6 {[%clk 0:02:40]} 9. e5 {[%clk 0:02:40]}  Ng8 {[%clk 0:02:38]} 10. Qg4 {[%clk 0:02:37]}  Ne7 {[%clk 0:02:27]} 11. h4 {[%clk 0:02:33]}  c5 {[%clk 0:02:05]} 12. Nf3 {[%clk 0:02:32]}  Nf5 {[%clk 0:02:02]} 13. h5 {[%clk 0:02:30]}  Bc6 {[%clk 0:01:58]} 14. O-O {[%clk 0:02:17]}  Be7 {[%clk 0:01:51]} 15. Re1 {[%clk 0:02:14]}  h6 {[%clk 0:01:44]} 16. Ne2 {[%clk 0:02:05]}  O-O {[%clk 0:01:39]} 17. b4 {[%clk 0:01:48]}  Kh8 {[%clk 0:01:28]} 18. bxc5 {[%clk 0:01:33]}  Bxc5 {[%clk 0:01:27]} 19. Ned4 {[%clk 0:01:22]}  Qb6 {[%clk 0:01:09]} 20. c3 {[%clk 0:01:21]}  Bd7 {[%clk 0:00:57]} 21. Ra2 {[%clk 0:01:14]}  Be7 {[%clk 0:00:27]} 22. Nxf5 {[%clk 0:01:05]}  exf5 {[%clk 0:00:28]} 23. Qf4 {[%clk 0:01:05]}  Be6 {[%clk 0:00:22]} 24. Be3 {[%clk 0:01:04]}  Qb3 {[%clk 0:00:21]} 25. Rd2 {[%clk 0:00:52]}  Rfc8 {[%clk 0:00:19]} 26. Bd4 {[%clk 0:00:39]}  Qxa3 {[%clk 0:00:19]} 27. Rb1 {[%clk 0:00:35]}  Rab8 {[%clk 0:00:16]} 28. Rxb8 {[%clk 0:00:29]}  Rxb8 {[%clk 0:00:17]} 29. Kh2 {[%clk 0:00:27]}  a5 {[%clk 0:00:16]} 30. Qe3 {[%clk 0:00:15]}  a4 {[%clk 0:00:14]} 31. Qe2 {[%clk 0:00:15]}  Qb3 {[%clk 0:00:12]} 32. Qa6 {[%clk 0:00:10]}  a3 {[%clk 0:00:11]} 33. Qa7 {[%clk 0:00:10]}  Rb7 {[%clk 0:00:04]} 34. Qa8+ {[%clk 0:00:10]}  Rb8 {[%clk 0:00:03]} 35. Qa7 {[%clk 0:00:10]}  Rb7 {[%clk 0:00:03]} 36. Qa8+ {[%clk 0:00:09]}  Kh7 {[%clk 0:00:03]} 37. Ne1 {[%clk 0:00:08]}  f4 {[%clk 0:00:02]} 38. Nd3 {[%clk 0:00:08]}  Bf5 {[%clk 0:00:02]} 39. Nc5 {[%clk 0:00:08]}  Bxc5 {[%clk 0:00:02]} 40. Bxc5 {[%clk 0:00:09]}  a2 {[%clk 0:00:02]} 41. Rxa2 {[%clk 0:00:07]}  Qxc3 {[%clk 0:00:02]} 42. Bf8 {[%clk 0:00:06]}  Rc7 {[%clk 0:00:02]} 43. Ra7 {[%clk 0:00:05]}  Rxa7 {[%clk 0:00:02]} 44. Qxa7 {[%clk 0:00:05]}  Qxe5 {[%clk 0:00:03]} 45. f3 {[%clk 0:00:05]}  Be6 {[%clk 0:00:03]} 46. Qe7 {[%clk 0:00:04]}  Qxh5+ {[%clk 0:00:03]} 47. Kg1 {[%clk 0:00:04]}  Qg5 {[%clk 0:00:03]} 48. Qd6 {[%clk 0:00:03]}  Qf6 {[%clk 0:00:02]} 49. Qc7 {[%clk 0:00:02]}  Qd4+ {[%clk 0:00:02]} 50. Kh2 {[%clk 0:00:02]}  Qf2 {[%clk 0:00:03]} 51. Bd6 {[%clk 0:00:02]}  Qg3+ {[%clk 0:00:02]} 52. Kg1 {[%clk 0:00:03]}  Bh3 {[%clk 0:00:02]} 53. Qc2+ {[%clk 0:00:03]}  g6 {[%clk 0:00:01]} 54. Kf1 {[%clk 0:00:03]}  Bxg2+ {[%clk 0:00:01]} 55. Qxg2 {[%clk 0:00:03]}  Qh4 {[%clk 0:00:02]} 56. Qd2 {[%clk 0:00:02]} 1-0


[Site "https://www.chess.com"]

[Event "Titled Tuesday Blitz February 07 Late 2023"]
[White "Fiorito, Francisco"]
[Black "Fathy, Elameir"]
[WhiteFideId "180165"]
[BlackFideId "10600396"]
[WhiteElo "2305"]
[BlackElo "2300"]
[Result "1-0"]
[Round "10"]
[TimeControl "180+2"]
[Date "2023.02.07"]
[WhiteClock "0:01:11"]
[BlackClock "0:00:03"]

1. d4 {[%clk 0:03:00]}  d5 {[%clk 0:02:50]} 2. Nc3 {[%clk 0:02:59]}  Nf6 {[%clk 0:02:49]} 3. Bf4 {[%clk 0:02:58]}  e6 {[%clk 0:02:49]} 4. Nb5 {[%clk 0:02:57]}  Na6 {[%clk 0:02:49]} 5. e3 {[%clk 0:02:57]}  c6 {[%clk 0:02:43]} 6. Na3 {[%clk 0:02:51]}  Qa5+ {[%clk 0:02:35]} 7. Qd2 {[%clk 0:02:43]}  Bb4 {[%clk 0:02:34]} 8. c3 {[%clk 0:02:42]}  Bxa3 {[%clk 0:02:35]} 9. bxa3 {[%clk 0:02:42]}  Ne4 {[%clk 0:02:34]} 10. Qc2 {[%clk 0:02:41]}  Qxa3 {[%clk 0:02:29]} 11. Rc1 {[%clk 0:02:38]}  O-O {[%clk 0:02:08]} 12. Bd3 {[%clk 0:02:35]}  f5 {[%clk 0:02:08]} 13. Nf3 {[%clk 0:02:30]}  c5 {[%clk 0:02:06]} 14. Ne5 {[%clk 0:02:23]}  b6 {[%clk 0:01:57]} 15. O-O {[%clk 0:02:18]}  Bb7 {[%clk 0:01:57]} 16. f3 {[%clk 0:02:15]}  Nf6 {[%clk 0:01:56]} 17. g4 {[%clk 0:01:54]}  fxg4 {[%clk 0:01:33]} 18. Nxg4 {[%clk 0:01:52]}  cxd4 {[%clk 0:01:20]} 19. Nxf6+ {[%clk 0:01:48]}  Rxf6 {[%clk 0:01:19]} 20. Bxh7+ {[%clk 0:01:46]}  Kh8 {[%clk 0:01:20]} 21. cxd4 {[%clk 0:01:43]}  Rc8 {[%clk 0:01:17]} 22. Qb1 {[%clk 0:01:35]}  Rxc1 {[%clk 0:00:47]} 23. Rxc1 {[%clk 0:01:36]}  Rxf4 {[%clk 0:00:25]} 24. exf4 {[%clk 0:01:35]}  Qxf3 {[%clk 0:00:26]} 25. Rf1 {[%clk 0:01:22]}  Qe3+ {[%clk 0:00:23]} 26. Rf2 {[%clk 0:01:21]}  Nc7 {[%clk 0:00:15]} 27. Bg6 {[%clk 0:01:20]}  Ba6 {[%clk 0:00:07]} 28. Qb4 {[%clk 0:01:17]}  Qc1+ {[%clk 0:00:03]} 29. Kg2 {[%clk 0:01:15]}  Kg8 {[%clk 0:00:03]} 30. Qe7 {[%clk 0:01:12]}  Qc6 {[%clk 0:00:03]} 31. Qd8+ {[%clk 0:01:11]} 1-0


[Site "https://www.chess.com"]

[Event "Titled Tuesday Blitz February 07 Late 2023"]
[White "Matko, Ognjen"]
[Black "Tobares, Leandro"]
[WhiteFideId "14509717"]
[BlackFideId "106402"]
[WhiteElo "2295"]
[BlackElo "2189"]
[Result "1-0"]
[Round "10"]
[TimeControl "180+2"]
[Date "2023.02.07"]
[WhiteClock "0:01:24"]
[BlackClock "0:01:58"]

1. e4 {[%clk 0:03:00]}  c5 {[%clk 0:02:59]} 2. Nf3 {[%clk 0:03:00]}  d6 {[%clk 0:02:59]} 3. d4 {[%clk 0:02:59]}  cxd4 {[%clk 0:02:59]} 4. Qxd4 {[%clk 0:03:00]}  Bd7 {[%clk 0:02:57]} 5. Bg5 {[%clk 0:02:59]}  Nc6 {[%clk 0:02:57]} 6. Qe3 {[%clk 0:02:59]}  Nf6 {[%clk 0:02:57]} 7. Nc3 {[%clk 0:02:58]}  e6 {[%clk 0:02:54]} 8. O-O-O {[%clk 0:02:56]}  Be7 {[%clk 0:02:52]} 9. h4 {[%clk 0:02:54]}  h6 {[%clk 0:02:51]} 10. Bf4 {[%clk 0:02:41]}  Qb8 {[%clk 0:02:40]} 11. Nb5 {[%clk 0:02:29]}  Ne5 {[%clk 0:02:38]} 12. Qc3 {[%clk 0:02:20]}  Nxf3 {[%clk 0:02:26]} 13. Nc7+ {[%clk 0:02:16]}  Kd8 {[%clk 0:02:23]} 14. Nxa8 {[%clk 0:02:08]}  Ne5 {[%clk 0:02:22]} 15. Bxe5 {[%clk 0:01:51]}  dxe5 {[%clk 0:02:21]} 16. Bb5 {[%clk 0:01:49]}  Qxa8 {[%clk 0:02:18]} 17. Rxd7+ {[%clk 0:01:48]}  Nxd7 {[%clk 0:02:15]} 18. Rd1 {[%clk 0:01:48]}  Ke8 {[%clk 0:01:58]} 19. Rxd7 {[%clk 0:01:42]}  Kf8 {[%clk 0:01:58]} 20. Rc7 {[%clk 0:01:24]} 1-0


[Site "https://www.chess.com"]

[Event "Titled Tuesday Blitz February 07 Late 2023"]
[White "Smith, Garrett L"]
[Black "Buchenau, Frank"]
[WhiteFideId "2024829"]
[BlackFideId "4604350"]
[WhiteElo "2047"]
[BlackElo "2222"]
[Result "1/2-1/2"]
[Round "10"]
[TimeControl "180+2"]
[Date "2023.02.07"]
[WhiteClock "0:00:13"]
[BlackClock "0:00:05"]

1. e4 {[%clk 0:03:00]}  e6 {[%clk 0:02:59]} 2. d4 {[%clk 0:03:00]}  d5 {[%clk 0:02:59]} 3. Nc3 {[%clk 0:03:00]}  Nf6 {[%clk 0:02:59]} 4. e5 {[%clk 0:03:00]}  Nfd7 {[%clk 0:02:59]} 5. f4 {[%clk 0:03:01]}  c5 {[%clk 0:02:59]} 6. Nf3 {[%clk 0:03:01]}  Nc6 {[%clk 0:02:59]} 7. Be3 {[%clk 0:03:01]}  a6 {[%clk 0:03:00]} 8. Qd2 {[%clk 0:03:01]}  b5 {[%clk 0:03:00]} 9. dxc5 {[%clk 0:03:02]}  Bxc5 {[%clk 0:02:59]} 10. Bd3 {[%clk 0:03:01]}  Qb6 {[%clk 0:02:59]} 11. Bf2 {[%clk 0:03:01]}  Bxf2+ {[%clk 0:02:58]} 12. Qxf2 {[%clk 0:03:00]}  Nc5 {[%clk 0:02:58]} 13. O-O {[%clk 0:02:54]}  b4 {[%clk 0:02:55]} 14. Ne2 {[%clk 0:02:53]}  a5 {[%clk 0:02:54]} 15. Ned4 {[%clk 0:02:48]}  Ne7 {[%clk 0:02:50]} 16. Bb5+ {[%clk 0:02:35]}  Bd7 {[%clk 0:02:50]} 17. Bxd7+ {[%clk 0:02:32]}  Nxd7 {[%clk 0:02:48]} 18. Kh1 {[%clk 0:02:14]}  O-O {[%clk 0:02:48]} 19. Rac1 {[%clk 0:02:04]}  Rfc8 {[%clk 0:02:47]} 20. g4 {[%clk 0:01:55]}  Nc5 {[%clk 0:02:37]} 21. f5 {[%clk 0:01:53]}  Ne4 {[%clk 0:02:36]} 22. Qe3 {[%clk 0:01:53]}  a4 {[%clk 0:02:07]} 23. Rcd1 {[%clk 0:01:24]}  a3 {[%clk 0:02:07]} 24. bxa3 {[%clk 0:01:18]}  Rc3 {[%clk 0:02:00]} 25. Rd3 {[%clk 0:01:17]}  Rxd3 {[%clk 0:01:45]} 26. cxd3 {[%clk 0:01:17]}  Rxa3 {[%clk 0:01:44]} 27. Ng5 {[%clk 0:00:55]}  h6 {[%clk 0:00:42]} 28. Nxe4 {[%clk 0:00:37]}  dxe4 {[%clk 0:00:42]} 29. fxe6 {[%clk 0:00:35]}  fxe6 {[%clk 0:00:37]} 30. Qxe4 {[%clk 0:00:35]}  Rxa2 {[%clk 0:00:27]} 31. Qf4 {[%clk 0:00:34]}  Qb7+ {[%clk 0:00:21]} 32. Rf3 {[%clk 0:00:32]}  Ng6 {[%clk 0:00:19]} 33. Qe4 {[%clk 0:00:18]}  Qxe4 {[%clk 0:00:16]} 34. dxe4 {[%clk 0:00:19]}  Nxe5 {[%clk 0:00:16]} 35. Rb3 {[%clk 0:00:19]}  Rd2 {[%clk 0:00:15]} 36. Rxb4 {[%clk 0:00:16]}  Nxg4 {[%clk 0:00:14]} 37. Nxe6 {[%clk 0:00:15]}  Rxh2+ {[%clk 0:00:12]} 38. Kg1 {[%clk 0:00:15]}  Re2 {[%clk 0:00:12]} 39. Nc5 {[%clk 0:00:14]}  Nf6 {[%clk 0:00:11]} 40. Rb8+ {[%clk 0:00:15]}  Kh7 {[%clk 0:00:11]} 41. Rb4 {[%clk 0:00:10]}  h5 {[%clk 0:00:10]} 42. Kf1 {[%clk 0:00:11]}  Rc2 {[%clk 0:00:09]} 43. Ne6 {[%clk 0:00:10]}  h4 {[%clk 0:00:08]} 44. e5 {[%clk 0:00:11]}  Nh5 {[%clk 0:00:03]} 45. Rxh4 {[%clk 0:00:11]}  Kg6 {[%clk 0:00:04]} 46. Nf4+ {[%clk 0:00:10]}  Nxf4 {[%clk 0:00:03]} 47. Rxf4 {[%clk 0:00:11]}  Rc5 {[%clk 0:00:04]} 48. Re4 {[%clk 0:00:11]}  Kf5 {[%clk 0:00:03]} 49. Re2 {[%clk 0:00:11]}  Rxe5 {[%clk 0:00:03]} 50. Rb2 {[%clk 0:00:11]}  g5 {[%clk 0:00:03]} 51. Kg2 {[%clk 0:00:12]}  Rc5 {[%clk 0:00:02]} 52. Rb8 {[%clk 0:00:12]}  Kg6 {[%clk 0:00:02]} 53. Rg8+ {[%clk 0:00:12]}  Kf5 {[%clk 0:00:03]} 54. Rf8+ {[%clk 0:00:12]}  Kg6 {[%clk 0:00:03]} 55. Rg8+ {[%clk 0:00:12]}  Kf5 {[%clk 0:00:04]} 56. Rf8+ {[%clk 0:00:13]}  Kg6 {[%clk 0:00:05]} 57. Rg8+ {[%clk 0:00:13]} 1/2-1/2


[Site "https://www.chess.com"]